[Event "Early-Titled-Tuesday-Blitz-January-16-2024"]
[Site "Chess.com"]
[Date "2024.01.16"]
[Round "2"]
[White "HiHaruka"]
[Black "Legendinunknown"]
[Result "0-1"]
[WhiteElo "2526"]
[BlackElo "2793"]
[TimeControl "180+1"]
[EndTime "8:18:29 PST"]
[Termination "Legendinunknown won on time"]

1. d4 {[%clk 0:02:34.8]} 1... Nf6 {[%clk 0:02:59]} 2. Nf3 {[%clk 0:02:33.1]}
2... e6 {[%clk 0:02:58.9]} 3. Nbd2 {[%clk 0:02:25.9]} 3... d5 {[%clk 0:02:57.5]}
4. e3 {[%clk 0:02:15.9]} 4... c5 {[%clk 0:02:57.4]} 5. c3 {[%clk 0:01:55.8]}
5... Nc6 {[%clk 0:02:57.2]} 6. Bd3 {[%clk 0:01:56.2]} 6... Bd6 {[%clk
0:02:57.2]} 7. O-O {[%clk 0:01:56.2]} 7... O-O {[%clk 0:02:56.6]} 8. dxc5 {[%clk
0:01:56.6]} 8... Bxc5 {[%clk 0:02:57.3]} 9. e4 {[%clk 0:01:56.9]} 9... Bd6
{[%clk 0:02:47.8]} 10. Qe2 {[%clk 0:01:52.5]} 10... Qc7 {[%clk 0:02:45.6]} 11.
Re1 {[%clk 0:01:52.3]} 11... e5 {[%clk 0:02:12.7]} 12. exd5 {[%clk 0:01:49.9]}
12... Nxd5 {[%clk 0:02:12.9]} 13. Bxh7+ {[%clk 0:01:45.7]} 13... Kxh7 {[%clk
0:02:12.5]} 14. Qe4+ {[%clk 0:01:45.2]} 14... f5 {[%clk 0:02:12.3]} 15. Qxd5
{[%clk 0:01:45]} 15... e4 {[%clk 0:02:11.6]} 16. Ng5+ {[%clk 0:01:44.8]} 16...
Kg6 {[%clk 0:02:08.5]} 17. h4 {[%clk 0:01:26.8]} 17... Bh2+ {[%clk 0:01:42.6]}
18. Kf1 {[%clk 0:01:13.5]} 18... b6 {[%clk 0:01:13.8]} 19. g3 {[%clk 0:00:50.6]}
19... Ne7 {[%clk 0:00:55.9]} 20. Qd4 {[%clk 0:00:42.6]} 20... Rd8 {[%clk
0:00:41.8]} 21. Qe3 {[%clk 0:00:39.1]} 21... Rd3 {[%clk 0:00:34.7]} 22. Qe2
{[%clk 0:00:32.6]} 22... Ba6 {[%clk 0:00:23.3]} 23. Ndxe4 {[%clk 0:00:21.4]}
23... Rxg3 {[%clk 0:00:17]} 24. Qxa6 {[%clk 0:00:20]} 24... Rg1+ {[%clk
0:00:17.3]} 25. Ke2 {[%clk 0:00:19.8]} 25... Rxe1+ {[%clk 0:00:18]} 26. Kxe1
{[%clk 0:00:20.7]} 26... fxe4 {[%clk 0:00:18.9]} 27. Nxe4 {[%clk 0:00:17.6]}
27... Nf5 {[%clk 0:00:18]} 28. Ng5 {[%clk 0:00:06.5]} 28... Re8+ {[%clk
0:00:16.6]} 29. Kf1 {[%clk 0:00:05.3]} 29... Qc6 {[%clk 0:00:17.1]} 30. f3
{[%clk 0:00:03]} 30... Qd5 {[%clk 0:00:13.6]} 0-1

[Event "Early-Titled-Tuesday-Blitz-January-16-2024"]
[Site "Chess.com"]
[Date "2024.01.16"]
[Round "2"]
[White "Egor_Koshulyan"]
[Black "ImportedItalianMaple"]
[Result "1-0"]
[WhiteElo "2680"]
[BlackElo "2390"]
[TimeControl "180+1"]
[EndTime "8:18:31 PST"]
[Termination "Egor_Koshulyan won by resignation"]

1. e4 {[%clk 0:03:00.9]} 1... d5 {[%clk 0:02:59.1]} 2. exd5 {[%clk 0:03:00.1]}
2... Qxd5 {[%clk 0:03:00]} 3. Nc3 {[%clk 0:03:00]} 3... Qa5 {[%clk 0:03:00.4]}
4. d4 {[%clk 0:03:00.6]} 4... Nf6 {[%clk 0:02:59.4]} 5. Nf3 {[%clk 0:03:01.1]}
5... Bf5 {[%clk 0:02:58.7]} 6. Bc4 {[%clk 0:03:00.7]} 6... e6 {[%clk 0:02:58.7]}
7. O-O {[%clk 0:03:01]} 7... c6 {[%clk 0:02:54.9]} 8. Re1 {[%clk 0:02:32.4]}
8... Be7 {[%clk 0:02:53.7]} 9. Ne5 {[%clk 0:02:29.9]} 9... O-O {[%clk
0:02:43.1]} 10. Bg5 {[%clk 0:02:28.4]} 10... h6 {[%clk 0:02:36.5]} 11. Bh4
{[%clk 0:02:26.8]} 11... Nd5 {[%clk 0:02:11.7]} 12. Bxd5 {[%clk 0:01:36.9]}
12... Bxh4 {[%clk 0:02:10.1]} 13. Be4 {[%clk 0:01:37.5]} 13... Bxe4 {[%clk
0:01:50.8]} 14. Nxe4 {[%clk 0:01:38.4]} 14... Qd8 {[%clk 0:01:39.1]} 15. c3
{[%clk 0:01:35.9]} 15... Nd7 {[%clk 0:01:37]} 16. Qh5 {[%clk 0:00:58.8]} 16...
Be7 {[%clk 0:01:13.5]} 17. Rad1 {[%clk 0:00:52.2]} 17... Nf6 {[%clk 0:00:58]}
18. Qf3 {[%clk 0:00:48.5]} 18... Nxe4 {[%clk 0:00:54.9]} 19. Rxe4 {[%clk
0:00:49.4]} 19... Qd5 {[%clk 0:00:20.3]} 20. c4 {[%clk 0:00:45.7]} 20... Qa5
{[%clk 0:00:20.5]} 21. a3 {[%clk 0:00:45.1]} 21... Rad8 {[%clk 0:00:18]} 22. Rg4
{[%clk 0:00:44.2]} 22... c5 {[%clk 0:00:09.7]} 23. d5 {[%clk 0:00:39.7]} 23...
exd5 {[%clk 0:00:08]} 24. cxd5 {[%clk 0:00:40.6]} 24... Qb6 {[%clk 0:00:06]} 25.
Nc4 {[%clk 0:00:39]} 25... Qc7 {[%clk 0:00:05.3]} 26. Qc3 {[%clk 0:00:31.7]}
26... f6 {[%clk 0:00:03]} 27. Qe3 {[%clk 0:00:29.6]} 27... Bd6 {[%clk
0:00:03.3]} 28. Qxh6 {[%clk 0:00:27.8]} 28... b5 {[%clk 0:00:01.7]} 29. Nxd6
{[%clk 0:00:27]} 29... Rxd6 {[%clk 0:00:02.6]} 30. Qh5 {[%clk 0:00:23.3]} 30...
Rfd8 {[%clk 0:00:02.7]} 31. Rg3 {[%clk 0:00:22.6]} 31... c4 {[%clk 0:00:03.2]}
32. Re3 {[%clk 0:00:21.1]} 32... Qf7 {[%clk 0:00:03.7]} 33. Qg4 {[%clk
0:00:15.8]} 33... Rxd5 {[%clk 0:00:04.2]} 34. Rde1 {[%clk 0:00:16.1]} 34... R5d7
{[%clk 0:00:03.7]} 35. h3 {[%clk 0:00:16.4]} 35... Rf8 {[%clk 0:00:04]} 36. Qf5
{[%clk 0:00:15.9]} 36... Rfd8 {[%clk 0:00:04.6]} 37. Qxb5 {[%clk 0:00:15.7]}
37... Rb7 {[%clk 0:00:04.3]} 38. Qa5 {[%clk 0:00:14.6]} 38... Re8 {[%clk
0:00:04]} 39. Rxe8+ {[%clk 0:00:14.6]} 1-0

[Event "Early-Titled-Tuesday-Blitz-January-16-2024"]
[Site "Chess.com"]
[Date "2024.01.16"]
[Round "2"]
[White "Maestro-Fermin"]
[Black "supereagles1201"]
[Result "1-0"]
[WhiteElo "2612"]
[BlackElo "2368"]
[TimeControl "180+1"]
[EndTime "8:18:31 PST"]
[Termination "Maestro-Fermin won by resignation"]

1. d4 {[%clk 0:03:00.9]} 1... d5 {[%clk 0:02:59.4]} 2. Bg5 {[%clk 0:02:56.2]}
2... f6 {[%clk 0:02:58.3]} 3. Bh4 {[%clk 0:02:55.5]} 3... Nh6 {[%clk 0:02:58.3]}
4. e3 {[%clk 0:02:54.7]} 4... Nf5 {[%clk 0:02:58]} 5. Bg3 {[%clk 0:02:52]} 5...
c5 {[%clk 0:02:57.3]} 6. c4 {[%clk 0:02:48.1]} 6... cxd4 {[%clk 0:02:49.7]} 7.
exd4 {[%clk 0:02:45.2]} 7... e5 {[%clk 0:02:41.5]} 8. dxe5 {[%clk 0:02:40.6]}
8... d4 {[%clk 0:02:41.6]} 9. Nd2 {[%clk 0:02:37.6]} 9... Nc6 {[%clk 0:02:40.1]}
10. Ngf3 {[%clk 0:02:37.2]} 10... Bb4 {[%clk 0:02:23.8]} 11. a3 {[%clk
0:02:34.2]} 11... Bxd2+ {[%clk 0:02:23.4]} 12. Qxd2 {[%clk 0:02:33.6]} 12... O-O
{[%clk 0:02:10.2]} 13. Bd3 {[%clk 0:02:30.9]} 13... fxe5 {[%clk 0:02:06.3]} 14.
O-O {[%clk 0:02:26]} 14... Nxg3 {[%clk 0:02:02.8]} 15. hxg3 {[%clk 0:02:25.6]}
15... Bf5 {[%clk 0:01:55]} 16. Rfe1 {[%clk 0:02:24]} 16... Bxd3 {[%clk 0:01:52]}
17. Qxd3 {[%clk 0:02:24.9]} 17... Qf6 {[%clk 0:01:50.3]} 18. Re2 {[%clk
0:02:19.7]} 18... Rae8 {[%clk 0:01:48.8]} 19. Rae1 {[%clk 0:02:20.1]} 19... Re7
{[%clk 0:01:43]} 20. Nd2 {[%clk 0:02:19.1]} 20... Rfe8 {[%clk 0:01:39.7]} 21.
Ne4 {[%clk 0:02:19.5]} 21... Qg6 {[%clk 0:01:35.5]} 22. b4 {[%clk 0:02:19.8]}
22... Nd8 {[%clk 0:01:22]} 23. c5 {[%clk 0:02:18.9]} 23... Nf7 {[%clk
0:01:16.3]} 24. Qc4 {[%clk 0:02:17]} 24... Kh8 {[%clk 0:01:15.7]} 25. Qd5 {[%clk
0:02:10.1]} 25... Qe6 {[%clk 0:01:12.8]} 26. Qxe6 {[%clk 0:02:08.1]} 26... Rxe6
{[%clk 0:01:13.7]} 27. f3 {[%clk 0:02:00.9]} 27... h6 {[%clk 0:01:13.3]} 28. Kf2
{[%clk 0:02:00.8]} 28... Kg8 {[%clk 0:01:13.3]} 29. g4 {[%clk 0:02:00.9]} 29...
Ng5 {[%clk 0:00:56.3]} 30. Nxg5 {[%clk 0:01:56.8]} 30... hxg5 {[%clk 0:00:57.2]}
31. Rd2 {[%clk 0:01:53.7]} 31... Kf7 {[%clk 0:00:56.6]} 32. Ke2 {[%clk 0:01:52]}
32... e4 {[%clk 0:00:52.7]} 33. Kd1 {[%clk 0:01:21.2]} 33... exf3 {[%clk
0:00:48.6]} 34. Rxe6 {[%clk 0:01:19.1]} 34... Rxe6 {[%clk 0:00:44]} 35. gxf3
{[%clk 0:01:17.9]} 35... Re3 {[%clk 0:00:37.8]} 36. Rxd4 {[%clk 0:01:18.2]}
36... Rxa3 {[%clk 0:00:35]} 37. Rd7+ {[%clk 0:01:18.1]} 37... Kf6 {[%clk
0:00:34.4]} 38. Ke2 {[%clk 0:01:15.9]} 38... b6 {[%clk 0:00:30.4]} 39. c6 {[%clk
0:01:15.8]} 39... a6 {[%clk 0:00:23.9]} 40. Ra7 {[%clk 0:01:06.7]} 40... Rc3
{[%clk 0:00:22.5]} 41. c7 {[%clk 0:01:06.6]} 41... a5 {[%clk 0:00:22.2]} 42.
bxa5 {[%clk 0:01:04.6]} 42... bxa5 {[%clk 0:00:22.7]} 43. Kd2 {[%clk 0:01:05.2]}
43... Rc5 {[%clk 0:00:20.5]} 44. Kd3 {[%clk 0:01:05.2]} 44... Ke5 {[%clk
0:00:20.6]} 45. Rxa5 {[%clk 0:00:57]} 45... Rxa5 {[%clk 0:00:16.9]} 46. c8=Q
{[%clk 0:00:56.2]} 46... Ra3+ {[%clk 0:00:17.8]} 47. Ke2 {[%clk 0:00:55.7]}
47... Ra2+ {[%clk 0:00:15.6]} 48. Ke3 {[%clk 0:00:55.6]} 48... Ra3+ {[%clk
0:00:15.4]} 49. Kf2 {[%clk 0:00:55.5]} 49... Ra2+ {[%clk 0:00:15.1]} 50. Kg3
{[%clk 0:00:54.9]} 50... Kf6 {[%clk 0:00:09.1]} 51. Qf5+ {[%clk 0:00:53.6]}
51... Ke7 {[%clk 0:00:08.4]} 52. Qxg5+ {[%clk 0:00:53.1]} 52... Kf8 {[%clk
0:00:07.2]} 53. Qf5+ {[%clk 0:00:52.5]} 53... Ke7 {[%clk 0:00:06.2]} 54. Qe5+
{[%clk 0:00:52.1]} 54... Kf8 {[%clk 0:00:05.7]} 55. g5 {[%clk 0:00:50.5]} 1-0

[Event "Early-Titled-Tuesday-Blitz-January-16-2024"]
[Site "Chess.com"]
[Date "2024.01.16"]
[Round "2"]
[White "FMCarmona"]
[Black "Happy1712Drummer"]
[Result "0-1"]
[WhiteElo "2183"]
[BlackElo "2482"]
[TimeControl "180+1"]
[EndTime "8:18:32 PST"]
[Termination "Happy1712Drummer won on time"]

1. e4 {[%clk 0:02:56]} 1... e6 {[%clk 0:02:28.7]} 2. Qe2 {[%clk 0:02:52.6]} 2...
d5 {[%clk 0:02:29.6]} 3. exd5 {[%clk 0:02:52.6]} 3... Qxd5 {[%clk 0:02:27.1]} 4.
Nc3 {[%clk 0:02:53.2]} 4... Qd8 {[%clk 0:02:26.8]} 5. Nf3 {[%clk 0:02:54]} 5...
Nf6 {[%clk 0:02:25.7]} 6. g3 {[%clk 0:02:53.4]} 6... c5 {[%clk 0:02:25.1]} 7.
Ne5 {[%clk 0:02:49.1]} 7... Nbd7 {[%clk 0:02:21.7]} 8. Bg2 {[%clk 0:02:45.3]}
8... Qc7 {[%clk 0:02:19.5]} 9. Nc4 {[%clk 0:02:30.9]} 9... a6 {[%clk 0:02:13.9]}
10. a4 {[%clk 0:02:30.2]} 10... Nb6 {[%clk 0:01:58.2]} 11. Nxb6 {[%clk
0:02:06.2]} 11... Qxb6 {[%clk 0:01:59.1]} 12. a5 {[%clk 0:02:06.1]} 12... Qc7
{[%clk 0:01:58.8]} 13. O-O {[%clk 0:02:00.5]} 13... Bd6 {[%clk 0:01:53.7]} 14.
d3 {[%clk 0:01:50.7]} 14... O-O {[%clk 0:01:49.8]} 15. Bg5 {[%clk 0:01:51.2]}
15... Nd7 {[%clk 0:01:35.8]} 16. Ne4 {[%clk 0:01:51.3]} 16... Be5 {[%clk
0:01:34.6]} 17. c3 {[%clk 0:01:44.6]} 17... h6 {[%clk 0:01:29.6]} 18. Be3 {[%clk
0:01:36.5]} 18... f5 {[%clk 0:01:28.7]} 19. Nd2 {[%clk 0:00:57.9]} 19... f4
{[%clk 0:01:20.3]} 20. gxf4 {[%clk 0:00:55.2]} 20... Bxf4 {[%clk 0:01:18.8]} 21.
Bxf4 {[%clk 0:00:55.3]} 21... Qxf4 {[%clk 0:01:18.9]} 22. Qxe6+ {[%clk
0:00:51.9]} 22... Kh8 {[%clk 0:01:18.1]} 23. Qe3 {[%clk 0:00:51.4]} 23... Ne5
{[%clk 0:00:51.6]} 24. d4 {[%clk 0:00:40.5]} 24... cxd4 {[%clk 0:00:31.9]} 25.
cxd4 {[%clk 0:00:36.7]} 25... Ng6 {[%clk 0:00:21.4]} 26. Nc4 {[%clk 0:00:29.1]}
26... Qf6 {[%clk 0:00:10.8]} 27. f4 {[%clk 0:00:18.9]} 27... Nh4 {[%clk
0:00:09.6]} 28. Ne5 {[%clk 0:00:19]} 28... Bf5 {[%clk 0:00:08.6]} 29. Rac1
{[%clk 0:00:16.7]} 29... Rad8 {[%clk 0:00:07.6]} 30. Rfd1 {[%clk 0:00:11.7]}
30... Bc8 {[%clk 0:00:05.8]} 31. Rf1 {[%clk 0:00:08.8]} 31... Nf5 {[%clk
0:00:05]} 32. Qf2 {[%clk 0:00:02.7]} 32... Rxd4 {[%clk 0:00:04.6]} 33. Rc7
{[%clk 0:00:02.2]} 33... Rdd8 {[%clk 0:00:03.2]} 0-1

[Event "Early-Titled-Tuesday-Blitz-January-16-2024"]
[Site "Chess.com"]
[Date "2024.01.16"]
[Round "2"]
[White "ilya2700"]
[Black "Byniolus"]
[Result "0-1"]
[WhiteElo "2401"]
[BlackElo "2755"]
[TimeControl "180+1"]
[EndTime "8:18:34 PST"]
[Termination "Byniolus won by checkmate"]

1. e4 {[%clk 0:02:59.3]} 1... d6 {[%clk 0:02:59.9]} 2. d4 {[%clk 0:02:59.5]}
2... Nf6 {[%clk 0:03:00]} 3. Nc3 {[%clk 0:02:59.6]} 3... c6 {[%clk 0:03:00.3]}
4. Nf3 {[%clk 0:02:59.9]} 4... Bg4 {[%clk 0:03:00.1]} 5. Bc4 {[%clk 0:02:59.1]}
5... e6 {[%clk 0:02:59.9]} 6. h3 {[%clk 0:02:57.7]} 6... Bh5 {[%clk 0:02:59.9]}
7. Be3 {[%clk 0:02:57.1]} 7... d5 {[%clk 0:03:00.1]} 8. Bd3 {[%clk 0:02:56.1]}
8... Be7 {[%clk 0:03:00]} 9. e5 {[%clk 0:02:46.2]} 9... Nfd7 {[%clk 0:02:58.4]}
10. Qd2 {[%clk 0:02:46.6]} 10... Bxf3 {[%clk 0:02:55.7]} 11. gxf3 {[%clk
0:02:47.5]} 11... c5 {[%clk 0:02:56.6]} 12. Ne2 {[%clk 0:02:43.4]} 12... c4
{[%clk 0:02:55.3]} 13. Rg1 {[%clk 0:02:38.8]} 13... cxd3 {[%clk 0:02:50.4]} 14.
Qxd3 {[%clk 0:02:39.7]} 14... g6 {[%clk 0:02:50.4]} 15. O-O-O {[%clk 0:02:38.5]}
15... Nc6 {[%clk 0:02:49.9]} 16. f4 {[%clk 0:02:37.8]} 16... Qa5 {[%clk
0:02:40]} 17. Kb1 {[%clk 0:02:37.2]} 17... Nb6 {[%clk 0:02:35]} 18. Bd2 {[%clk
0:02:31.4]} 18... Qa6 {[%clk 0:02:34.9]} 19. Qg3 {[%clk 0:02:27.6]} 19... Nc4
{[%clk 0:02:29.2]} 20. Bc3 {[%clk 0:02:22.7]} 20... Rc8 {[%clk 0:02:22]} 21. h4
{[%clk 0:02:20.1]} 21... h5 {[%clk 0:02:20.2]} 22. Nc1 {[%clk 0:02:13.8]} 22...
b5 {[%clk 0:02:10.8]} 23. Nb3 {[%clk 0:02:09.2]} 23... b4 {[%clk 0:02:03]} 24.
Bd2 {[%clk 0:02:03.4]} 24... Nxd2+ {[%clk 0:01:59.6]} 25. Rxd2 {[%clk
0:02:04.3]} 25... Na5 {[%clk 0:01:58.4]} 26. f5 {[%clk 0:01:50.6]} 26... gxf5
{[%clk 0:01:45.9]} 27. Qg7 {[%clk 0:01:41]} 27... Rf8 {[%clk 0:01:46]} 28. Qh6
{[%clk 0:01:39.2]} 28... Nxb3 {[%clk 0:01:40]} 29. axb3 {[%clk 0:01:40.1]} 29...
Bxh4 {[%clk 0:01:33.6]} 30. Qxh5 {[%clk 0:01:38.7]} 30... Be7 {[%clk 0:01:33.2]}
31. f4 {[%clk 0:01:38.2]} 31... Qb6 {[%clk 0:01:19.2]} 32. Rg7 {[%clk
0:01:30.1]} 32... Rc7 {[%clk 0:01:18.9]} 33. Qh7 {[%clk 0:01:11.8]} 33... a5
{[%clk 0:01:07]} 34. Rg8 {[%clk 0:01:06.1]} 34... Qb5 {[%clk 0:01:04.2]} 35.
Rdg2 {[%clk 0:00:58.2]} 35... a4 {[%clk 0:00:55.8]} 36. bxa4 {[%clk 0:00:38.6]}
36... Qf1+ {[%clk 0:00:34.2]} 37. Ka2 {[%clk 0:00:37.7]} 37... b3+ {[%clk
0:00:34.3]} 38. cxb3 {[%clk 0:00:24.5]} 38... Rc1 {[%clk 0:00:35.2]} 39. b4
{[%clk 0:00:19.2]} 39... Qd1 {[%clk 0:00:31.6]} 40. b3 {[%clk 0:00:10.4]} 40...
Ra1+ {[%clk 0:00:18.2]} 41. Kb2 {[%clk 0:00:10.1]} 41... Qc1# {[%clk 0:00:18.3]}
0-1

[Event "Early-Titled-Tuesday-Blitz-January-16-2024"]
[Site "Chess.com"]
[Date "2024.01.16"]
[Round "2"]
[White "MITerryble"]
[Black "lefonghua"]
[Result "1/2-1/2"]
[WhiteElo "3021"]
[BlackElo "2650"]
[TimeControl "180+1"]
[EndTime "8:18:36 PST"]
[Termination "Game drawn by repetition"]

1. d4 {[%clk 0:03:00.9]} 1... Nf6 {[%clk 0:03:00]} 2. Bg5 {[%clk 0:03:00.3]}
2... g6 {[%clk 0:02:59.9]} 3. Nd2 {[%clk 0:02:59.2]} 3... Bg7 {[%clk 0:02:59.8]}
4. c3 {[%clk 0:02:59.7]} 4... d6 {[%clk 0:03:00]} 5. e4 {[%clk 0:02:59.9]} 5...
O-O {[%clk 0:03:00.6]} 6. Ngf3 {[%clk 0:02:57.8]} 6... c5 {[%clk 0:03:00.7]} 7.
dxc5 {[%clk 0:02:57.8]} 7... dxc5 {[%clk 0:03:01.1]} 8. Bc4 {[%clk 0:02:58.1]}
8... h6 {[%clk 0:03:01.4]} 9. Bh4 {[%clk 0:02:57.6]} 9... Nc6 {[%clk 0:02:57.8]}
10. O-O {[%clk 0:02:57.7]} 10... g5 {[%clk 0:02:56.4]} 11. Bg3 {[%clk
0:02:57.7]} 11... Nh5 {[%clk 0:02:56]} 12. Re1 {[%clk 0:02:57.5]} 12... Nxg3
{[%clk 0:02:55.4]} 13. hxg3 {[%clk 0:02:57.5]} 13... Qc7 {[%clk 0:02:54.5]} 14.
Qc2 {[%clk 0:02:49.2]} 14... Na5 {[%clk 0:02:54]} 15. Be2 {[%clk 0:02:43.1]}
15... Be6 {[%clk 0:02:52.9]} 16. Nb3 {[%clk 0:02:39.3]} 16... Nc4 {[%clk
0:02:44]} 17. Nfd2 {[%clk 0:02:29.2]} 17... Nxd2 {[%clk 0:02:41]} 18. Nxd2
{[%clk 0:02:29]} 18... Rad8 {[%clk 0:02:36.1]} 19. a4 {[%clk 0:02:27.6]} 19...
b6 {[%clk 0:02:33.9]} 20. Nf1 {[%clk 0:02:26.3]} 20... c4 {[%clk 0:02:25]} 21.
Ne3 {[%clk 0:02:23.6]} 21... Rd7 {[%clk 0:02:17.3]} 22. Bg4 {[%clk 0:02:16.3]}
22... Bxg4 {[%clk 0:02:14.1]} 23. Nxg4 {[%clk 0:02:17.2]} 23... Rfd8 {[%clk
0:02:11.5]} 24. Rad1 {[%clk 0:02:17.1]} 24... Qc6 {[%clk 0:02:01.8]} 25. e5
{[%clk 0:01:52.3]} 25... e6 {[%clk 0:01:54.7]} 26. Rxd7 {[%clk 0:01:39.3]} 26...
Rxd7 {[%clk 0:01:52]} 27. Rd1 {[%clk 0:01:38.4]} 27... Rd5 {[%clk 0:01:39.9]}
28. f4 {[%clk 0:01:25.6]} 28... Qc5+ {[%clk 0:01:22.7]} 29. Kf1 {[%clk
0:01:17.6]} 29... h5 {[%clk 0:01:15.7]} 30. Nf2 {[%clk 0:01:05.2]} 30... gxf4
{[%clk 0:01:11.8]} 31. gxf4 {[%clk 0:01:03.9]} 31... Qe3 {[%clk 0:01:09]} 32.
Rxd5 {[%clk 0:00:51.1]} 32... exd5 {[%clk 0:01:09.9]} 33. g3 {[%clk 0:00:40.4]}
33... Qxg3 {[%clk 0:01:02.3]} 34. Qf5 {[%clk 0:00:40.7]} 34... h4 {[%clk
0:00:57]} 35. e6 {[%clk 0:00:41.1]} 35... fxe6 {[%clk 0:00:54.2]} 36. Qxe6+
{[%clk 0:00:42]} 36... Kh8 {[%clk 0:00:50.6]} 37. Qe8+ {[%clk 0:00:34.7]} 37...
Kh7 {[%clk 0:00:49.8]} 38. Qh5+ {[%clk 0:00:35.3]} 38... Bh6 {[%clk 0:00:43]}
39. Qf5+ {[%clk 0:00:34.5]} 39... Kh8 {[%clk 0:00:39.2]} 40. Qf6+ {[%clk
0:00:29.6]} 40... Kh7 {[%clk 0:00:37.2]} 41. Qf7+ {[%clk 0:00:27]} 41... Kh8
{[%clk 0:00:37.3]} 42. Qe8+ {[%clk 0:00:24]} 42... Kh7 {[%clk 0:00:35.8]} 43.
Qd7+ {[%clk 0:00:24.2]} 43... Kh8 {[%clk 0:00:35.9]} 44. Qc8+ {[%clk 0:00:22.4]}
44... Kh7 {[%clk 0:00:35.6]} 45. Qb7+ {[%clk 0:00:22.4]} 45... Bg7 {[%clk
0:00:34.3]} 46. Qf7 {[%clk 0:00:09.2]} 46... Kh8 {[%clk 0:00:28.5]} 47. Qe8+
{[%clk 0:00:08.7]} 47... Kh7 {[%clk 0:00:28.7]} 48. Qh5+ {[%clk 0:00:09.3]}
48... Bh6 {[%clk 0:00:28.9]} 49. Qf5+ {[%clk 0:00:05.1]} 49... Kh8 {[%clk
0:00:28.8]} 50. Qe5+ {[%clk 0:00:05.2]} 50... Kh7 {[%clk 0:00:28.1]} 51. Qf5+
{[%clk 0:00:05]} 1/2-1/2

[Event "Early-Titled-Tuesday-Blitz-January-16-2024"]
[Site "Chess.com"]
[Date "2024.01.16"]
[Round "2"]
[White "dzilleruelo"]
[Black "DefiantChair"]
[Result "1-0"]
[WhiteElo "2361"]
[BlackElo "2558"]
[TimeControl "180+1"]
[EndTime "8:18:36 PST"]
[Termination "dzilleruelo won by resignation"]

1. e4 {[%clk 0:02:56]} 1... c5 {[%clk 0:02:59.9]} 2. Nf3 {[%clk 0:02:56.2]} 2...
d6 {[%clk 0:02:59.9]} 3. d4 {[%clk 0:02:56.3]} 3... cxd4 {[%clk 0:03:00.8]} 4.
Qxd4 {[%clk 0:02:56.9]} 4... Nf6 {[%clk 0:03:01.5]} 5. Be2 {[%clk 0:02:57]} 5...
Nc6 {[%clk 0:03:01.4]} 6. Qe3 {[%clk 0:02:56.9]} 6... e6 {[%clk 0:03:00.4]} 7.
O-O {[%clk 0:02:57]} 7... Be7 {[%clk 0:03:00.5]} 8. Rd1 {[%clk 0:02:55.6]} 8...
Qc7 {[%clk 0:02:59.9]} 9. c4 {[%clk 0:02:55.6]} 9... O-O {[%clk 0:02:59.4]} 10.
Nc3 {[%clk 0:02:56]} 10... a6 {[%clk 0:02:59]} 11. b3 {[%clk 0:02:56.4]} 11...
Ne5 {[%clk 0:02:58.8]} 12. Bb2 {[%clk 0:02:55.4]} 12... b6 {[%clk 0:02:55.8]}
13. Rac1 {[%clk 0:02:54.5]} 13... Bb7 {[%clk 0:02:55.1]} 14. h3 {[%clk 0:02:54]}
14... Rad8 {[%clk 0:02:53.4]} 15. Nd4 {[%clk 0:02:52.4]} 15... Qb8 {[%clk
0:02:51.3]} 16. Nc2 {[%clk 0:02:50.2]} 16... Ned7 {[%clk 0:02:49.1]} 17. Ba3
{[%clk 0:02:46.6]} 17... Nc5 {[%clk 0:02:43.9]} 18. Bf3 {[%clk 0:02:38.9]} 18...
Qa8 {[%clk 0:02:37.2]} 19. Re1 {[%clk 0:02:36.4]} 19... a5 {[%clk 0:02:31.1]}
20. Nd4 {[%clk 0:02:31.2]} 20... Rfe8 {[%clk 0:02:27.2]} 21. Ndb5 {[%clk
0:02:31.2]} 21... Qb8 {[%clk 0:02:25.6]} 22. Rcd1 {[%clk 0:02:23.1]} 22... Nfd7
{[%clk 0:02:25]} 23. Bb2 {[%clk 0:02:10.8]} 23... Ne5 {[%clk 0:02:24.3]} 24. Be2
{[%clk 0:02:09.2]} 24... h6 {[%clk 0:01:53.2]} 25. f4 {[%clk 0:02:08.4]} 25...
Nc6 {[%clk 0:01:51.9]} 26. Bf3 {[%clk 0:02:08.5]} 26... Bh4 {[%clk 0:01:48.9]}
27. Re2 {[%clk 0:02:05.9]} 27... e5 {[%clk 0:01:49.4]} 28. Nd5 {[%clk
0:01:59.4]} 28... exf4 {[%clk 0:01:49.5]} 29. Qxf4 {[%clk 0:01:59.6]} 29... Bg5
{[%clk 0:01:47]} 30. Qg3 {[%clk 0:01:59.1]} 30... Ne5 {[%clk 0:01:42.1]} 31. h4
{[%clk 0:01:55.7]} 31... Be7 {[%clk 0:01:22.7]} 32. Nbc7 {[%clk 0:01:55.8]}
32... Bxd5 {[%clk 0:01:11.8]} 33. Nxd5 {[%clk 0:01:56.4]} 33... Kh8 {[%clk
0:01:03.1]} 34. Bh5 {[%clk 0:01:52.3]} 34... Rf8 {[%clk 0:00:44.4]} 35. Nxe7
{[%clk 0:01:48.2]} 35... Qb7 {[%clk 0:00:42.6]} 36. Nd5 {[%clk 0:01:45.9]} 36...
f5 {[%clk 0:00:41.8]} 37. exf5 {[%clk 0:01:39.3]} 37... Rxf5 {[%clk 0:00:41.6]}
38. Bg4 {[%clk 0:01:34.3]} 38... Rff8 {[%clk 0:00:41.6]} 39. Rf1 {[%clk
0:01:27.3]} 39... Rxf1+ {[%clk 0:00:41]} 40. Kxf1 {[%clk 0:01:27.1]} 40... Rf8+
{[%clk 0:00:39.1]} 41. Kg1 {[%clk 0:01:24.7]} 41... Qf7 {[%clk 0:00:34.8]} 42.
Bxe5 {[%clk 0:01:13.3]} 42... Qf1+ {[%clk 0:00:32]} 43. Kh2 {[%clk 0:01:13.1]}
43... dxe5 {[%clk 0:00:31.7]} 44. Qxe5 {[%clk 0:01:10.9]} 44... Nd3 {[%clk
0:00:31]} 45. Qg3 {[%clk 0:01:10.6]} 45... Nf2 {[%clk 0:00:19.2]} 46. Rxf2
{[%clk 0:01:03]} 46... Rxf2 {[%clk 0:00:20.1]} 47. Bf3 {[%clk 0:00:55.5]} 47...
Rxa2 {[%clk 0:00:15.4]} 48. Ne7 {[%clk 0:00:54]} 48... g5 {[%clk 0:00:11.1]} 49.
Qe5+ {[%clk 0:00:52.2]} 49... Kh7 {[%clk 0:00:11.3]} 50. Qf5+ {[%clk 0:00:51]}
50... Kg7 {[%clk 0:00:11.3]} 51. Qe5+ {[%clk 0:00:50.4]} 51... Kf7 {[%clk
0:00:11.6]} 52. Bh5+ {[%clk 0:00:48]} 52... Kf8 {[%clk 0:00:11]} 53. Ng6+ {[%clk
0:00:48]} 53... Kg8 {[%clk 0:00:11.5]} 54. Qh8+ {[%clk 0:00:46]} 54... Kf7
{[%clk 0:00:12]} 55. Qf8+ {[%clk 0:00:46.6]} 1-0